bitfinex-derivatives/quotes_ETHF0:USTF0_20250212
["timestamp","ask_amount","ask_price","bid_price","bid_amount"]
[1739401217511,0.00544969,2755.0,2754.4,3.2078]
[1739401218001,0.7259,2754.8,2754.4,3.2078]
[1739401218202,0.72592,2754.8,2754.4,3.2078]
[1739401218408,0.72592,2754.8,2754.1,3.2078]
[1739401218611,0.00544969,2755.0,2754.4,3.2078]
[1739401218612,3.30688,2754.9,2754.4,3.2078]
[1739401219115,3.2078,2754.6,2754.5,0.2904]
[1739401219309,0.72595,2754.6,2754.5,0.2904]
[1739401219816,6.72595,2754.6,2754.5,0.2904]
[1739401220116,6.0,2754.6,2754.0,1.8958]
[1739401220307,4.25507278,2754.3,2754.0,2.62191]
[1739401220613,4.25507278,2754.7,2754.2,3.2078]
[1739401220815,0.00544969,2755.0,2754.5,3.2078]
[1739401221003,0.00544969,2755.0,2754.7,0.72591]
[1739401221205,0.00544969,2755.0,2754.9,0.72587]
[1739401222010,9.69e-06,2755.0,2754.9,0.72587]
[1739401222215,9.69e-06,2755.0,2754.9,6.72587]
[1739401222713,9.69e-06,2755.0,2754.9,3.2078]
[1739401223510,9.69e-06,2755.0,2754.9,3.4981]
[1739401223511,0.72584969,2755.0,2754.9,3.4981]
[1739401223708,9.69e-06,2755.0,2754.9,3.4981]
[1739401224208,9.69e-06,2755.0,2754.9,4.22397]
[1739401224414,0.72584969,2755.0,2754.9,3.4981]
[1739401224806,9.30384969,2755.0,2754.9,0.2903]
[1739401225011,11.78580969,2755.0,2754.0,0.4434]
[1739401225211,4.25507278,2754.6,2754.0,0.4434]
[1739401225417,0.72605,2754.3,2754.0,0.4434]
[1739401225807,4.25507278,2754.6,2754.2,3.2078]
[1739401226119,4.25507278,2754.6,2754.2,4.6601]
[1739401226412,2.577,2754.8,2754.2,4.6601]
[1739401226617,4.25508247,2755.0,2754.2,4.6601]
[1739401226816,4.25508247,2755.0,2754.2,1.4523]
[1739401227020,4.25508247,2755.0,2754.2,4.6601]
[1739401227209,0.72603,2754.3,2754.2,1.4523]
[1739401227615,0.72608,2754.1,2754.0,1.2572]
[1739401228715,0.72613,2753.9,2753.8,1.4525]
[1739401229018,0.72613,2753.9,2752.4,4.477]
[1739401229019,0.72627,2753.4,2752.4,2.2263]
[1739401229221,0.72627,2753.4,2752.9,3.2078]
[1739401229726,0.72627,2753.4,2752.8,3.2078]
[1739401230017,0.72627,2753.4,2753.3,0.29594969]
[1739401231423,6.72627,2753.4,2753.3,0.29594969]
[1739401232520,6.0,2753.4,2752.9,1.2939]
[1739401232819,3.2078,2753.5,2752.9,1.2939]
[1739401233027,0.72629,2753.3,2752.9,1.2939]
[1739401233223,3.2078,2753.5,2752.9,1.2939]
[1739401233427,0.7263,2753.3,2752.9,1.2939]
[1739401233829,0.7263,2753.3,2753.0,0.022]
[1739401234026,0.00544969,2753.4,2753.0,0.022]
[1739401234425,0.73172969,2753.4,2753.0,0.022]
[1739401234627,0.00544969,2753.4,2753.0,0.1897]
[1739401234931,0.72631,2753.3,2753.0,0.1897]
[1739401235133,0.00544969,2753.4,2753.0,0.1897]
[1739401235332,0.72635,2753.1,2753.0,0.1897]
[1739401235538,0.72633,2753.2,2753.0,0.1897]
[1739401235831,3.2078,2753.2,2753.0,0.1897]
[1739401236928,3.9341,2753.3,2753.0,0.1897]
[1739401237735,3.2078,2753.3,2753.0,0.1897]
[1739401237932,0.73172969,2753.4,2753.0,0.1897]
[1739401237933,0.00544969,2753.4,2753.0,0.1897]
[1739401238128,7.46287278,2754.6,2754.1,0.72606]
[1739401238324,3.2078,2754.6,2753.9,3.2078]
[1739401238531,0.01499738,2754.4,2753.9,3.2078]
[1739401239031,0.01499738,2754.4,2754.1,0.72607]
[1739401239231,0.01499738,2754.4,2754.3,0.72603]
[1739401239830,0.01499738,2754.4,2754.0,0.00544969]
[1739401240031,0.74100738,2754.4,2754.0,0.73154969]
[1739401240226,0.72608,2754.1,2754.0,0.00544969]
[1739401240535,0.74107738,2754.1,2754.0,0.00544969]
[1739401240831,3.31507738,2754.1,2754.0,0.00544969]
[1739401241036,9.31507738,2754.1,2754.0,0.00544969]
[1739401241235,1.81531,2754.0,2753.0,3.3975]
[1739401241533,8.58899738,2754.1,2753.0,0.1897]
[1739401241534,0.72635,2753.1,2753.0,0.1897]
[1739401242031,6.72635,2753.1,2753.0,0.022]
[1739401242236,0.7264,2752.9,2752.8,1.2938]
[1739401242438,4.98147278,2752.9,2752.8,1.29924969]
[1739401242630,4.98147278,2752.9,2752.8,0.00544969]
[1739401242631,0.01499738,2752.9,2752.8,0.00544969]
[1739401242837,0.01499738,2752.9,2752.8,0.73186969]
[1739401243138,0.01499738,2752.9,2752.8,0.00544969]
[1739401243630,0.01499738,2752.9,2752.8,0.73186969]
[1739401243939,6.82807278,2753.7,2752.8,0.00544969]
[1739401244136,2.573,2753.7,2752.8,0.00544969]
[1739401244329,2.573,2753.7,2752.8,2.26774969]
[1739401244842,3.2078,2753.5,2752.9,3.2078]
[1739401245032,3.2078,2753.0,2752.8,0.00544969]
[1739401245233,7.55447278,2752.9,2752.8,0.00544969]
[1739401245738,13.55447278,2752.9,2752.8,0.00544969]
[1739401245930,7.55447278,2752.9,2752.8,0.00544969]
[1739401246128,13.55447278,2752.9,2752.8,0.00544969]
[1739401246328,7.55447278,2752.9,2752.8,0.00544969]
[1739401246733,6.82807278,2752.9,2752.8,0.00544969]
[1739401246934,2.573,2752.9,2752.8,0.00544969]
[1739401247238,7.46287278,2753.4,2752.8,3.21324969]
[1739401247539,10.76115278,2753.4,2752.9,0.72639]
[1739401247935,3.2078,2753.0,2752.8,0.00544969]
[1739401248132,0.72629,2753.4,2752.8,0.00544969]
[1739401248333,0.72632,2753.2,2752.8,0.00544969]
[1739401248635,7.46287278,2753.4,2752.8,0.00544969]
[1739401248636,3.9342,2752.9,2752.8,0.00544969]
[1739401249040,3.9342,2752.9,2752.8,0.17324969]
[1739401249240,6.07077278,2753.4,2752.8,0.17324969]
[1739401249241,9.27857278,2753.4,2752.8,0.17324969]
[1739401249742,3.2078,2753.3,2752.8,0.17324969]
[1739401250037,2.572,2753.2,2752.8,0.17324969]
[1739401250337,4.25507278,2753.8,2753.1,3.2078]
[1739401250540,2.572,2753.7,2753.4,3.2078]
[1739401250838,4.25507278,2753.8,2753.4,3.2078]
[1739401251142,7.46287278,2753.8,2752.8,0.00544969]
[1739401251329,3.2078,2753.4,2752.8,0.00544969]
[1739401251532,0.7264,2752.9,2752.8,0.00544969]
[1739401251733,6.5052,2752.9,2752.8,0.00544969]
[1739401252036,3.2974,2752.9,2752.8,0.00544969]
[1739401252241,9.2974,2752.9,2752.8,0.00544969]
[1739401252535,3.2974,2752.9,2752.8,0.00544969]
[1739401252735,4.25507278,2753.0,2752.8,0.00544969]
[1739401252944,3.2078,2753.2,2752.8,0.00544969]
[1739401253128,3.2078,2753.2,2752.9,0.72639]
[1739401253337,3.93413,2753.2,2752.8,0.73185969]
[1739401253635,3.93414,2753.2,2752.8,0.73185969]
[1739401253838,3.2078,2753.2,2752.8,0.00544969]
[1739401254139,2.571,2753.3,2752.8,0.00544969]
[1739401254338,2.571,2753.3,2753.0,0.72637]
[1739401254642,5.7788,2753.4,2752.8,0.00544969]
[1739401254943,10.03387278,2753.4,2752.8,0.00544969]
[1739401255243,0.7264,2752.9,2752.8,0.00544969]
[1739401256242,4.25507278,2753.0,2752.8,0.00544969]
[1739401256437,0.72629,2753.3,2752.9,0.72639]
[1739401256743,2.57,2753.2,2752.8,0.00544969]
[1739401256940,2.57,2753.2,2753.0,0.72637]
[1739401257133,0.72635,2753.1,2752.8,0.00544969]
[1739401257837,0.72637,2753.0,2752.9,1.2936]
[1739401258039,4.98144278,2753.0,2752.9,1.2936]
[1739401258842,14.18924278,2753.0,2752.9,1.2936]
[1739401259045,0.7264,2752.9,2752.8,0.00544969]
[1739401260042,0.7265,2752.5,2752.4,0.1678]
[1739401260343,0.0185263,2752.5,2752.4,0.1678]
[1739401260550,0.7450263,2752.5,2752.4,0.1678]
[1739401260735,0.0185263,2752.5,2752.3,3.2078]
[1739401261035,10.27359908,2752.5,2751.6,3.2078]
[1739401261242,7.81632,2752.5,2752.1,0.00544969]
[1739401261433,0.72664,2752.0,2751.9,3.2078]
[1739401261635,3.29464,2752.0,2751.9,3.2078]
[1739401261829,3.29464,2752.0,2751.0,0.7269]
[1739401261830,0.72671,2751.7,2751.6,0.1678]
[1739401262037,0.72671,2751.7,2751.1,3.2078]
[1739401262038,0.72684,2751.3,2751.1,3.2078]
[1739401262240,0.72684,2751.3,2750.7,3.04986]
[1739401262241,2.569,2751.3,2750.8,3.2078]
[1739401262542,0.50530851,2752.1,2751.2,3.2078]
[1739401262846,0.50530851,2752.4,2752.3,0.72656]
[1739401263037,3.2078,2752.6,2752.3,0.72656]
[1739401263230,0.00544969,2752.6,2752.1,3.2078]
[1739401263436,0.00544969,2752.6,2752.1,5.02431]
[1739401263740,3.2078,2753.5,2752.5,3.2078]
[1739401263940,3.2078,2753.5,2751.8,4.6412]
[1739401263941,4.98127278,2753.7,2753.2,0.72631]
[1739401264238,0.72622,2753.6,2753.2,0.72631]
[1739401264431,19.034,2753.9,2752.8,4.679]
[1739401264634,0.7262,2753.7,2752.9,3.2078]
[1739401264950,0.00544969,2753.6,2753.0,0.00544969]
[1739401265645,0.72635,2753.1,2753.0,0.00544969]
[1739401265841,3.93415,2753.1,2753.0,0.00544969]
[1739401266051,3.2078,2753.1,2752.1,3.2078]
[1739401266241,0.7265,2752.6,2752.1,3.2078]
[1739401266538,0.72646,2752.7,2752.3,3.2078]
[1739401266739,0.72639,2753.0,2752.3,3.2078]
[1739401266944,3.93416,2753.1,2752.6,0.72647]
[1739401267147,3.2078,2753.1,2752.4,0.00544969]
[1739401267337,3.2078,2752.9,2752.4,2.45434969]
[1739401267653,4.25507278,2753.3,2752.4,2.45434969]
[1739401267945,3.2078,2753.4,2752.6,3.2078]
[1739401268140,3.2078,2753.4,2753.0,0.72637]
[1739401268642,3.2078,2753.4,2753.0,0.72635]
[1739401268840,3.2078,2753.4,2753.0,3.2078]
[1739401269048,2.57244969,2753.6,2753.0,3.2078]
[1739401269231,3.93406,2753.5,2753.0,3.2078]
[1739401269432,0.7263,2753.3,2753.0,3.2078]
[1739401269632,3.2078,2753.5,2753.0,3.2078]
[1739401269840,0.00544969,2753.6,2753.0,3.2078]
[1739401270844,3.2078,2753.5,2753.0,3.2078]
[1739401271039,3.2078,2753.5,2752.8,2.3882]
[1739401271343,0.72636,2753.1,2752.8,2.3882]
[1739401271738,2.566,2753.4,2752.8,2.3882]
[1739401271945,0.7264,2752.9,2752.6,3.93426]
[1739401272145,2.566,2753.4,2752.6,3.2078]
[1739401272343,3.2078,2752.7,2752.4,0.00544969]
[1739401272548,0.7265,2752.5,2752.4,0.00544969]
[1739401273139,7.81628,2752.5,2751.4,3.2078]
[1739401273345,3.93445,2752.0,2751.6,0.72674]
[1739401273540,3.2078,2752.0,2751.4,3.2078]
[1739401273745,0.72668,2751.9,2751.4,3.93458]
[1739401273940,0.72668,2751.9,2751.4,0.72679]
[1739401273941,3.2917,2751.8,2751.4,0.72679]
[1739401274443,2.565,2751.8,2751.3,0.00544969]
[1739401274643,3.21324969,2751.9,2751.3,3.21324969]
[1739401274845,3.21324969,2751.9,2751.8,0.72669]
[1739401274846,0.00544969,2751.9,2751.8,0.72669]
[1739401275744,2.565,2753.0,2752.0,1.8166]
[1739401275951,2.565,2753.0,2752.4,3.2078]
[1739401276148,2.565,2753.0,2752.9,0.7264]
[1739401277149,2.565,2753.0,2752.4,3.2078]
[1739401277336,0.72644,2752.8,2752.5,0.72649]
[1739401277541,2.565,2753.0,2752.4,3.2078]
[1739401277940,2.565,2753.0,2752.8,0.72641]
[1739401278252,0.73177969,2753.2,2752.4,3.2078]
[1739401278459,0.73177969,2753.2,2753.0,0.72635]
[1739401278460,3.29576969,2753.2,2753.0,0.72635]
[1739401278743,3.29577969,2753.2,2753.0,0.72636]
[1739401279045,0.72639,2753.0,2752.8,0.00544969]
[1739401279445,0.7264,2752.9,2752.8,0.00544969]
[1739401279751,2.56944969,2753.2,2752.8,0.00544969]
[1739401279942,0.7264,2752.9,2752.7,0.72645]
[1739401280143,5.77724969,2753.2,2752.4,5.67291662]
[1739401280342,0.72646,2752.7,2752.5,0.72649]
[1739401280547,5.77724969,2753.2,2752.4,5.67291662]
[1739401280745,0.72635,2753.1,2752.4,5.67291662]
[1739401280941,5.77724969,2753.2,2752.8,0.72641]
[1739401281246,5.77724969,2753.2,2752.5,0.00544969]
[1739401281645,2.56944969,2753.2,2752.5,0.00544969]
[1739401281850,0.00544969,2753.2,2752.7,3.2078]
[1739401282340,0.00544969,2753.2,2752.9,0.7264]
[1739401282341,0.72636,2753.1,2752.9,0.7264]
[1739401282648,0.00544969,2753.2,2753.1,0.72635]
[1739401282850,0.72607,2754.2,2754.1,0.72608]
[1739401283059,0.72607,2754.2,2754.0,0.72609]
[1739401283350,3.2078,2754.4,2753.8,2.54157]
[1739401283550,3.2078,2754.4,2754.2,0.72604]
[1739401283751,3.2078,2754.4,2753.7,3.2078]
[1739401283950,2.562,2754.8,2753.7,3.2078]
[1739401284151,0.73150969,2754.3,2753.8,0.00544969]
[1739401284348,0.00544969,2754.3,2753.8,0.00544969]
[1739401284549,0.73149969,2754.3,2753.8,0.00544969]
[1739401284748,0.00544969,2754.3,2753.8,0.00544969]
[1739401284946,0.72612,2754.0,2753.8,0.73159969]
[1739401285254,3.21324969,2754.3,2753.8,0.00544969]
[1739401285454,0.72607,2754.2,2754.0,0.7261]
[1739401285755,3.21324969,2754.3,2753.8,0.00544969]
[1739401286145,0.00544969,2754.3,2753.8,0.00544969]
[1739401286456,0.00544969,2754.3,2754.2,0.72606]
[1739401287049,0.00544969,2754.3,2753.8,3.21324969]
[1739401287255,0.72613,2753.9,2753.8,3.21324969]
[1739401287450,0.72613,2753.9,2753.8,0.00544969]
[1739401288048,0.72612,2754.0,2753.8,0.00544969]
[1739401288346,3.21324969,2754.3,2753.9,3.2078]
[1739401288347,0.00544969,2754.3,2753.9,3.2078]
[1739401288549,0.00544969,2754.3,2754.2,0.72606]
[1739401288953,3.2078,2755.2,2755.0,0.72583]
[1739401289147,5.7678,2755.2,2755.0,0.72583]
[1739401289352,0.72582,2755.1,2755.0,0.72583]
[1739401289552,0.72583,2755.1,2754.9,0.72586]
[1739401289751,0.72582,2755.1,2754.9,0.72586]
[1739401290259,5.7678,2755.2,2754.5,3.2078]
[1739401290653,0.72593,2754.7,2754.5,0.72597]
[1739401290960,3.2078,2754.8,2754.3,2.4449]
[1739401291162,0.72598,2754.5,2754.3,2.4449]
[1739401291356,0.72599,2754.5,2754.3,2.4449]
[1739401291553,7.46287278,2755.0,2754.3,2.4449]
[1739401291954,5.77224969,2755.3,2754.5,3.2078]
[1739401292156,0.7258,2755.2,2754.9,0.72586]
[1739401292356,5.77224969,2755.3,2754.9,0.72586]
[1739401292559,5.77224969,2755.3,2754.5,3.2078]
[1739401292757,0.72597,2754.6,2754.2,3.2078]
[1739401292954,4.25507278,2755.0,2754.5,3.2078]
[1739401293155,0.72588,2754.9,2754.6,0.72595]
[1739401293358,4.25507278,2755.0,2754.4,3.2078]
[1739401293563,3.2078,2755.1,2754.5,1.81495]
[1739401293859,3.2078,2755.1,2755.0,0.72584]
[1739401294363,0.00544969,2755.3,2755.2,0.72579]
[1739401295563,3.2078,2756.4,2755.1,3.2078]
[1739401295862,5.7648,2756.4,2755.7,3.2078]
[1739401296065,0.72559,2756.0,2755.7,3.2078]
[1739401296256,0.72559,2756.0,2755.8,0.72561]
[1739401296452,5.7648,2756.4,2755.4,3.2078]
[1739401296662,0.72559,2756.0,2755.8,0.72562]
[1739401296861,0.00544969,2756.2,2755.6,0.00544969]
[1739401297061,0.72565,2755.8,2755.6,0.00544969]
[1739401297264,0.72566,2755.7,2755.6,0.00544969]
[1739401297467,3.28266,2755.7,2755.6,0.00544969]
[1739401297766,2.557,2755.7,2755.6,0.00544969]
[1739401298260,4.98072278,2755.8,2755.6,0.00544969]
[1739401298261,2.556,2755.8,2755.6,0.00544969]
[1739401298567,2.556,2755.8,2755.7,0.72566]
[1739401298858,3.2078,2756.0,2755.6,0.00544969]
[1739401299063,0.00544969,2756.2,2756.1,0.72555]
[1739401299263,0.00544969,2756.2,2755.7,2.4155]
[1739401299766,0.00544969,2756.2,2756.1,0.72555]
[1739401300861,0.00544969,2756.2,2755.7,5.6233]
[1739401301262,0.00544969,2756.2,2755.7,3.2078]
[1739401301761,3.2078,2756.0,2755.6,0.00544969]
[1739401301970,0.72566,2755.7,2755.6,0.00544969]
[1739401302159,6.48846,2755.7,2755.6,0.00544969]
[1739401302361,3.28066,2755.7,2755.6,0.00544969]
[1739401302663,2.555,2755.7,2755.6,0.00544969]
[1739401302966,2.555,2755.7,2755.6,0.73113969]
[1739401304371,2.555,2755.7,2755.6,0.00544969]
[1739401304668,3.28066,2755.7,2755.6,0.00544969]
[1739401305963,8.555,2755.7,2754.9,3.2078]
[1739401306164,4.25507278,2755.4,2754.9,3.2078]
[1739401306574,3.2078,2755.3,2754.6,3.2078]
[1739401306870,3.9337,2754.8,2754.5,0.72596]
[1739401307068,2.553,2754.8,2754.5,3.2078]
[1739401307264,5.5511,2755.6,2754.4,3.21324969]
[1739401307465,3.2078,2755.6,2755.5,0.72571]
[1739401307671,3.93339,2756.0,2755.3,3.2078]
[1739401307962,2.553,2756.1,2755.3,3.2078]
[1739401308162,2.553,2756.1,2755.7,0.72564]
[1739401308163,0.72559,2756.0,2755.7,0.72564]
[1739401308358,3.27857,2756.1,2755.8,0.72562]
[1739401308559,0.72558,2756.0,2755.7,0.72565]
[1739401308768,3.2078,2755.9,2755.8,0.72563]
[1739401308959,3.2078,2755.9,2755.7,0.72566]
[1739401309154,3.2078,2755.9,2755.6,0.72567]
[1739401309155,3.93342,2755.9,2755.6,0.72567]
[1739401309567,3.2078,2755.9,2755.3,3.2078]
[1739401309759,0.00544969,2756.2,2755.7,3.2078]
[1739401309963,0.00544969,2756.2,2756.1,3.93335]
[1739401310269,0.00544969,2756.2,2756.1,0.72555]
[1739401310660,0.00544969,2756.2,2756.0,0.72556]
[1739401310859,3.21324969,2756.2,2755.9,0.00544969]
[1739401311060,0.72558,2756.0,2755.9,0.00544969]
[1739401311261,3.27758,2756.0,2755.9,0.00544969]
[1739401313160,2.552,2756.0,2755.9,0.00544969]
[1739401313563,0.72558,2756.0,2755.9,0.00544969]
[1739401313959,0.72558,2756.0,2755.9,0.00163957]
[1739401314967,6.0,2756.0,2754.5,5.4419]
[1739401315161,3.2078,2755.0,2754.5,5.4419]
[1739401315572,0.72595,2754.6,2754.5,3.2078]
[1739401315764,3.2078,2754.6,2753.8,3.2078]
[1739401315961,3.2078,2754.2,2753.6,4.1957]
[1739401316163,3.2078,2754.8,2754.2,0.72606]
[1739401316362,3.2078,2754.8,2754.1,3.2078]
[1739401316566,0.00544969,2754.8,2753.9,0.00544969]
[1739401316770,0.00544969,2754.8,2754.3,0.72603]
[1739401316771,3.2078,2754.4,2754.3,0.72603]
[1739401317069,0.72593,2754.7,2754.3,0.72603]
[1739401317371,3.2078,2754.5,2754.2,0.72604]
[1739401317574,3.2078,2754.5,2753.9,0.00544969]
[1739401317762,3.2078,2754.0,2753.9,0.00544969]
[1739401318273,3.93391,2754.0,2753.9,0.00544969]
[1739401318864,3.2078,2754.0,2753.9,0.00544969]
[1739401319576,2.549,2754.6,2754.5,0.72598]
[1739401319771,0.00544969,2754.8,2753.9,3.21324969]
[1739401319979,0.00544969,2754.8,2754.7,0.72592]
[1739401320674,3.2078,2755.5,2755.4,0.72574]
[1739401320868,3.2078,2756.3,2755.4,3.2078]
[1739401321068,2.549,2756.2,2755.4,3.2078]
[1739401321472,2.549,2756.2,2755.9,0.72558]
[1739401321669,2.549,2756.2,2755.4,3.2078]
[1739401321976,0.72561,2755.9,2755.8,0.00544969]
[1739401322177,3.93341,2755.9,2755.8,0.00544969]
[1739401322577,9.93341,2755.9,2755.8,0.00544969]
[1739401322981,3.2078,2755.9,2755.8,0.00544969]
[1739401323175,3.2078,2756.2,2755.8,0.73106969]
[1739401323370,0.50331553,2755.9,2755.8,0.73106969]
[1739401323772,3.2078,2756.2,2755.8,0.00544969]
[1739401323967,0.00544969,2756.3,2756.2,0.72553]
[1739401324671,0.00544969,2756.3,2756.0,3.2078]
[1739401324876,0.00544969,2756.3,2755.9,2.302]
[1739401325680,3.2078,2756.2,2755.9,2.302]
[1739401325979,3.93335,2756.2,2755.9,2.302]
[1739401326174,3.2078,2756.2,2755.9,2.302]
[1739401326379,0.72561,2755.9,2755.8,0.00544969]
[1739401326882,3.93341,2755.9,2755.8,0.00544969]
[1739401328177,3.93341,2755.9,2755.8,0.00163956]
[1739401329073,9.93341,2755.9,2755.8,9.56e-06]
[1739401329273,13.46287278,2755.9,2754.1,2.3003]
[1739401329480,4.25507278,2755.1,2754.1,2.3003]
[1739401329781,0.72597,2754.6,2754.1,3.02637]
[1739401329973,2.546,2755.0,2754.1,2.3003]
[1739401330174,0.72595,2754.6,2754.2,0.72604]
[1739401330371,0.00544969,2754.8,2754.3,0.73146969]
[1739401330579,0.726,2754.4,2754.3,0.00544969]
[1739401331081,3.9338,2754.4,2754.3,0.00544969]
[1739401331284,6.4788,2754.4,2754.3,0.00544969]
[1739401331473,12.4788,2754.4,2754.3,0.00544969]
[1739401332878,6.98207999,2754.4,2754.3,0.00544969]
[1739401333083,15.90107999,2754.4,2752.9,2.2215]
[1739401333378,4.25507278,2753.7,2752.3,3.2078]
[1739401333571,3.2078,2754.3,2753.6,3.2078]
[1739401333885,3.2078,2754.3,2753.3,1.81573]
[1739401334080,3.2078,2754.3,2753.6,3.2078]
[1739401334288,0.00544969,2754.1,2754.0,0.7261]
[1739401334777,3.2078,2754.8,2754.0,9.2078]
[1739401335080,4.25507278,2755.7,2754.6,3.2078]
[1739401335277,3.2078,2755.9,2754.9,3.2078]
[1739401335777,4.25507278,2755.7,2754.8,3.2078]
[1739401335984,0.72579,2755.3,2755.1,0.00544969]
[1739401336172,0.72579,2755.2,2755.1,0.00544969]
[1739401336575,3.26979,2755.2,2755.1,0.00544969]
[1739401336779,2.544,2755.2,2755.1,0.00544969]
[1739401337180,2.544,2755.2,2755.1,0.73126969]
[1739401337376,4.26052247,2755.7,2755.3,0.72575]
[1739401338078,4.26052247,2755.7,2755.1,0.00544969]
[1739401338386,0.00544969,2755.7,2755.5,0.72571]
[1739401338571,0.00544969,2755.7,2755.6,0.72569]
[1739401338773,3.2078,2756.3,2755.6,3.2078]
[1739401338973,3.2078,2756.3,2755.7,2.3462]
[1739401339369,3.2078,2756.3,2755.8,2.2973]
[1739401339572,3.2078,2755.9,2755.8,2.2973]
[1739401339877,3.2078,2756.3,2755.8,1.78990703]
[1739401340077,2.543,2756.4,2755.8,4.99770703]
[1739401340078,0.00544969,2756.1,2755.8,4.99770703]
[1739401340282,0.00544969,2756.1,2756.0,0.72558]
[1739401340984,0.00544969,2756.1,2755.8,1.78990703]
[1739401341172,0.00544969,2756.1,2755.4,3.2078]
[1739401341580,3.2078,2756.3,2755.4,5.02214]
[1739401341783,2.2164,2757.6,2755.4,5.02214]
[1739401341784,3.2078,2757.1,2756.7,0.72537]
[1739401341974,3.2078,2757.1,2756.7,0.72538]
[1739401342174,3.2078,2757.1,2756.5,3.2078]
[1739401342175,0.72539,2756.8,2756.6,2.4865]
[1739401342383,3.2078,2757.2,2756.6,2.4865]
[1739401342575,0.7254,2756.7,2756.6,3.586]
[1739401342777,0.7254,2756.7,2756.6,3.59144969]
[1739401343178,0.72538,2756.8,2756.6,1.10494969]
[1739401343485,0.7254,2756.7,2756.6,1.10494969]
[1739401343985,3.9332,2756.7,2756.6,1.39514969]
[1739401344180,4.25507278,2756.9,2756.6,1.39514969]
[1739401344378,0.7254,2756.7,2756.6,1.39514969]
[1739401344774,4.25507278,2756.9,2756.6,1.39514969]
[1739401344976,3.93313,2757.0,2756.6,1.39514969]
[1739401345177,0.72539,2756.8,2756.6,1.39514969]
[1739401345377,0.7254,2756.7,2756.6,1.39514969]
[1739401346287,0.72543,2756.6,2756.3,0.53697786]
[1739401346485,2.54,2756.8,2756.0,0.72556]
[1739401346680,0.72546,2756.5,2756.0,0.72556]
[1739401346878,0.72548,2756.4,2756.0,0.72556]
[1739401347084,2.54,2756.8,2755.8,3.2078]
[1739401347377,2.54,2756.8,2756.0,0.00544969]
[1739401347890,2.54,2756.8,2756.2,0.72552]
[1739401348184,2.54,2756.8,2756.5,0.72543]
[1739401348594,3.21324969,2757.2,2756.3,5.02154]
[1739401348892,3.93852969,2757.2,2756.8,0.72536]
[1739401349188,3.21324969,2757.2,2756.4,0.2902]
[1739401349583,3.21324969,2757.2,2756.6,3.2078]
[1739401349990,0.7254,2756.7,2756.5,0.8215]
[1739401350185,4.25507278,2756.9,2756.5,0.8215]
[1739401350386,0.72539,2756.8,2756.5,0.8215]
[1739401350591,0.72538,2756.8,2756.5,0.8215]
[1739401351286,0.72539,2756.8,2756.5,0.8215]
[1739401351488,4.25507278,2756.9,2756.5,0.8215]
[1739401351689,0.72542,2756.6,2756.5,0.8215]
[1739401351886,0.72539,2756.8,2756.5,0.8215]
[1739401352092,0.72539,2756.8,2756.4,1.01566]
[1739401352292,0.72539,2756.8,2756.5,0.2902]
[1739401352696,0.72541,2756.7,2756.5,0.2902]
[1739401352892,4.25507278,2756.9,2756.5,0.2902]
[1739401353088,4.98043278,2756.9,2756.5,1.01563]
[1739401353293,0.72538,2756.8,2756.5,0.2902]
[1739401353493,0.72538,2756.8,2756.5,1.01565]
[1739401353798,0.72539,2756.8,2756.5,0.2902]
[1739401354096,4.25507278,2756.9,2756.5,0.2902]
[1739401354097,0.72542,2756.6,2756.5,0.2902]
[1739401354291,0.72542,2756.6,2756.5,0.5465]
[1739401354794,6.72542,2756.6,2756.5,0.5465]
[1739401354982,6.72542,2756.6,2756.5,0.2563]
[1739401355186,6.0,2756.6,2756.0,0.00544969]
[1739401355490,0.72555,2756.1,2756.0,0.00544969]
[1739401355688,2.537,2756.1,2755.0,2.3673]
[1739401355888,0.72576,2755.4,2755.1,0.72582]
[1739401356089,3.2078,2755.5,2755.0,2.3673]
[1739401356403,5.7448,2755.5,2754.8,3.2078]
[1739401356784,0.72579,2755.3,2754.8,3.2078]
[1739401356988,0.72579,2755.3,2754.9,0.00544969]
[1739401357195,0.72579,2755.3,2754.9,0.00944969]
[1739401357495,4.25507278,2756.1,2755.1,3.2078]
[1739401357686,4.25507278,2756.1,2755.2,2.1833]
[1739401357687,3.2078,2755.9,2755.2,2.1833]
[1739401357882,6.06897278,2756.1,2755.2,2.1833]
[1739401358087,6.06897278,2756.1,2755.2,2.90908]
[1739401358286,0.72562,2755.9,2755.2,2.1833]
[1739401358487,4.25507278,2756.1,2755.2,2.1833]
[1739401358702,0.00544969,2755.8,2755.1,3.9336]
[1739401358897,0.72574,2755.5,2755.1,3.2078]
[1739401359092,3.2078,2755.6,2755.0,0.2903]
[1739401359093,5.7438,2755.6,2755.0,0.2903]
[1739401359396,5.7438,2755.6,2754.9,0.00944969]
[1739401359397,4.25507278,2755.3,2754.9,0.00944969]
[1739401359585,3.2078,2755.1,2753.8,3.2078]
[1739401359786,0.72603,2754.3,2753.8,3.93395]
[1739401359989,2.536,2754.4,2753.3,3.2078]
[1739401360494,0.72606,2754.2,2753.7,0.72618]
[1739401360695,0.00544969,2754.1,2753.6,3.21324969]
[1739401360894,0.00544969,2754.1,2754.0,0.72611]
[1739401361288,0.00544969,2754.1,2753.9,3.2078]
[1739401361494,0.00544969,2754.1,2753.6,0.00544969]
[1739401362594,0.00544969,2754.1,2753.6,0.73163969]
[1739401362893,2.54144969,2754.1,2753.7,3.2078]
[1739401363097,2.54144969,2754.1,2753.9,0.72612]
[1739401364095,3.93399,2753.7,2753.6,0.91334969]
[1739401364298,3.93399,2753.7,2753.4,1.4527]
[1739401364299,3.2078,2753.7,2753.4,1.4527]
[1739401364493,0.72624,2753.5,2753.4,1.4527]
[1739401364798,2.536,2753.5,2752.8,0.72641]
[1739401364999,3.2078,2753.3,2752.5,5.5997]
[1739401365300,4.25507278,2753.4,2752.5,2.3919]
[1739401365497,0.72639,2753.0,2752.6,0.00544969]
[1739401365700,2.535,2752.9,2752.6,0.00544969]